bitfinex/quotes_ETHUSD_20251120
["timestamp","ask_amount","ask_price","bid_price","bid_amount"]
[1763664073416,0.4789,2827.7,2826.5,7.12917998]
[1763664073615,0.4789,2827.7,2826.6,1.23591815]
[1763664073805,0.4789,2827.7,2826.7,0.32892551]
[1763664074159,0.4789,2827.7,2826.6,1.31249664]
[1763664074448,0.4789,2827.7,2826.7,0.3288719]
[1763664074626,0.4789,2827.7,2826.8,0.3288719]
[1763664074826,0.4789,2827.7,2826.6,1.31249664]
[1763664075029,0.4789,2827.7,2826.7,0.3288646]
[1763664075234,0.4789,2827.7,2826.8,0.3288646]
[1763664075415,0.4789,2827.7,2827.0,0.90699264]
[1763664076105,0.4789,2827.7,2826.3,0.405504]
[1763664076301,0.4789,2827.7,2826.4,0.32882493]
[1763664076508,0.4789,2827.7,2825.7,7.12917998]
[1763664076805,0.4789,2827.7,2826.5,7.12917998]
[1763664077011,0.4789,2827.7,2826.6,0.32883778]
[1763664077338,0.4789,2827.7,2826.6,0.90699264]
[1763664077838,0.4789,2827.7,2826.2,0.405504]
[1763664077839,0.1882,2826.7,2826.2,0.405504]
[1763664078062,0.1882,2826.7,2826.3,0.32881221]
[1763664078264,0.1882,2826.7,2826.4,0.32881221]
[1763664078472,0.6671,2826.7,2826.5,0.32881221]
[1763664078761,0.6671,2826.7,2826.2,0.90699264]
[1763664078948,0.4789,2826.6,2826.3,0.3288406]
[1763664079160,0.1882,2826.7,2826.4,0.3288406]
[1763664079352,0.4789,2827.0,2826.5,7.45802058]
[1763664079353,0.1882,2826.9,2826.5,7.45802058]
[1763664079668,0.55519429,2826.7,2826.6,1.23583014]
[1763664079834,0.55519429,2826.7,2826.6,1.23582382]
[1763664080231,0.55519429,2826.7,2826.6,1.23587803]
[1763664080568,0.1882,2826.9,2826.6,1.23587803]
[1763664080860,0.1882,2826.9,2826.6,0.90699264]
[1763664081164,0.6671,2826.9,2826.2,1.31249664]
[1763664081367,0.6671,2826.9,2826.3,0.32882001]
[1763664081572,0.6671,2826.9,2826.4,0.32882001]
[1763664081760,0.6671,2826.9,2826.2,1.31249664]
[1763664081761,0.6671,2826.9,2826.5,0.32882001]
[1763664081942,0.6671,2826.9,2826.6,0.32882001]
[1763664082146,0.4789,2826.8,2826.2,1.31249664]
[1763664082480,0.4789,2826.8,2826.3,0.32886925]
[1763664082770,0.4789,2826.8,2825.5,7.12917998]
[1763664082955,0.4789,2826.8,2825.7,0.405504]
[1763664083157,0.4789,2826.8,2825.8,0.32893021]
[1763664083368,0.55531271,2826.6,2825.6,0.90699264]
[1763664083671,0.55531271,2826.6,2825.7,0.32893947]
[1763664083881,0.55531271,2826.6,2825.2,0.95400424]
[1763664083882,0.1882,2825.6,2825.2,0.95400424]
[1763664084034,0.1882,2825.6,2825.3,0.32895244]
[1763664084236,0.1882,2826.2,2825.4,0.32895244]
[1763664084450,0.1882,2826.2,2825.5,0.32895244]
[1763664084654,0.1882,2826.2,2825.6,0.32894491]
[1763664084851,0.4789,2826.1,2825.2,0.90699264]
[1763664085037,0.4789,2826.1,2825.3,0.32894521]
[1763664085346,0.4789,2826.1,2825.4,0.32894521]
[1763664085597,0.4789,2826.1,2825.2,0.405504]
[1763664085815,0.4789,2826.1,2825.3,0.32898104]
[1763664086112,0.4789,2826.1,2825.4,0.32898104]
[1763664086276,0.4789,2826.1,2825.2,1.31249664]
[1763664086277,0.4552,2825.3,2825.2,1.31249664]
[1763664086484,0.4552,2825.3,2824.8,0.95500424]
[1763664086485,0.4552,2825.3,2824.8,0.001]
[1763664086720,0.1882,2826.2,2824.8,0.001]
[1763664086721,0.4789,2825.6,2824.8,0.001]
[1763664087211,0.1882,2825.5,2824.8,0.001]
[1763664087395,0.1882,2825.5,2824.8,1.27248954]
[1763664087609,0.1882,2825.5,2824.9,0.405504]
[1763664087915,0.4789,2826.0,2825.2,1.31249664]
[1763664089598,0.4789,2826.0,2825.5,0.001]
[1763664091135,0.4833,2825.6,2825.5,0.001]
[1763664091423,0.4833,2825.6,2825.2,0.001]
[1763664091755,0.4833,2825.3,2825.2,0.001]
[1763664092087,0.9655,2825.3,2825.2,0.001]
[1763664093822,1.5210867,2825.3,2824.9,0.001]
[1763664094129,0.4833,2825.0,2824.9,0.001]
[1763664094482,0.9655,2825.0,2824.9,0.001]
[1763664095229,0.9655,2825.0,2824.8,0.001]
[1763664095400,1.1493,2824.9,2824.8,0.001]
[1763664097037,1.22272047,2824.9,2824.8,0.001]
[1763664097536,0.83942047,2824.9,2824.8,0.001]
[1763664097742,0.55562047,2824.9,2824.8,0.001]
[1763664098105,0.65562047,2824.9,2824.8,0.001]
[1763664098328,1.61192047,2824.9,2824.8,0.001]
[1763664101641,0.65562047,2824.9,2824.8,0.001]
[1763664103406,1.60362047,2824.9,2824.8,0.001]
[1763664104466,1.13062047,2824.9,2824.8,0.001]
[1763664104881,0.65562047,2824.9,2824.8,0.003]
[1763664105028,0.55562047,2824.9,2824.8,7.53768398]
[1763664105229,0.55562047,2824.9,2824.8,0.406504]
[1763664105230,0.65562047,2824.9,2824.8,0.406504]
[1763664105755,0.65562047,2824.9,2824.8,0.001]
[1763664105958,1.60362047,2824.9,2824.8,0.001]
[1763664106367,0.1,2824.6,2824.5,0.001]
[1763664106569,0.1,2824.6,2824.2,0.001]
[1763664106570,0.475,2824.6,2824.2,0.001]
[1763664106866,0.575,2824.3,2824.2,0.001]
[1763664107066,1.048,2824.3,2824.2,0.001]
[1763664107368,1.60369008,2824.3,2824.2,0.001]
[1763664107769,1.13069008,2824.3,2824.2,0.001]
[1763664107934,1.60369008,2824.3,2824.2,0.001]
[1763664108133,0.65569008,2824.3,2824.2,0.001]
[1763664108466,0.65569008,2824.3,2824.2,7.53968398]
[1763664108467,0.55569008,2824.3,2824.2,7.53968398]
[1763664108639,0.55569008,2824.3,2824.2,1.31749664]
[1763664109052,0.65569008,2824.3,2824.2,1.31749664]
[1763664109254,0.65569008,2824.3,2824.2,1.32149664]
[1763664109962,0.65569008,2824.3,2824.2,1.31749664]
[1763664110467,0.1,2824.3,2824.2,1.31749664]
[1763664110774,0.002,2824.9,2824.2,1.31749664]
[1763664110775,0.1,2824.5,2824.3,0.405504]
[1763664111146,0.1,2824.5,2824.4,0.004]
[1763664111344,0.002,2824.9,2824.4,0.004]
[1763664111544,0.002,2824.9,2824.7,0.405504]
[1763664111769,0.002,2824.9,2824.8,0.004]
[1763664112455,0.002,2824.9,2824.8,0.409504]
[1763664112779,0.002,2824.9,2824.8,1.36750824]
[1763664112982,0.002,2824.9,2824.8,0.413504]
[1763664113364,0.002,2824.9,2824.8,1.68550965]
[1763664113547,0.002,2825.2,2824.9,0.405504]
[1763664113748,0.473,2826.6,2825.2,1.31249664]
[1763664113998,1.02843992,2826.6,2825.4,1.36167444]
[1763664114200,1.02843992,2826.6,2825.4,1.67906459]
[1763664114361,0.1,2826.5,2826.1,1.31249664]
[1763664114689,0.1882,2827.9,2826.5,0.405504]
[1763664114690,0.1,2826.8,2826.5,0.405504]
[1763664114851,0.1,2826.6,2826.5,0.405504]
[1763664115054,0.1966,2826.9,2826.4,0.405504]
[1763664115267,0.1,2826.7,2826.4,0.405504]
[1763664115485,0.473,2826.8,2826.1,0.90699264]
[1763664115688,0.1,2826.3,2826.2,0.405504]
[1763664115995,0.1,2826.2,2826.1,0.405504]
[1763664116349,0.1,2826.0,2825.9,0.405504]
[1763664116891,0.1,2826.0,2825.9,0.409504]
[1763664117189,0.1,2826.1,2825.9,1.36143744]
[1763664117400,0.1,2826.4,2826.1,1.31249664]
[1763664118090,0.473,2826.8,2826.1,1.31249664]
[1763664118288,0.1,2826.0,2825.9,0.405504]
[1763664118471,0.1882,2827.9,2826.1,1.31249664]
[1763664118472,0.1,2826.7,2826.1,1.31249664]
[1763664118676,0.1,2826.5,2826.1,1.31249664]
[1763664118884,0.1,2826.5,2826.1,0.405504]
[1763664119181,0.1,2826.5,2826.4,0.004]
[1763664120304,0.1,2826.5,2826.1,0.405504]
[1763664120875,0.1,2826.1,2825.9,0.94995809]
[1763664121186,0.1,2826.1,2825.7,0.94995809]
[1763664121388,0.1,2826.1,2826.0,0.004]
[1763664121587,0.1,2826.4,2826.1,1.31249664]
[1763664121774,0.1966,2826.9,2826.1,1.31249664]
[1763664121775,0.473,2826.8,2826.1,1.31249664]
[1763664122106,0.473,2826.8,2826.0,7.60872059]
[1763664122107,0.475,2826.2,2825.7,0.94995809]
[1763664122278,0.473,2826.8,2825.2,0.94995809]
[1763664122279,0.1,2825.5,2825.2,0.94995809]
[1763664122482,0.1,2825.5,2825.1,0.94995809]
[1763664122803,0.1,2825.9,2825.4,0.004]
[1763664122977,0.1,2825.9,2825.1,0.91099264]
[1763664122978,0.1,2826.1,2825.8,0.405504]
[1763664123305,0.1966,2826.9,2825.8,0.409504]
[1763664123476,0.1,2826.4,2826.0,0.004]
[1763664123677,0.1,2826.2,2825.8,0.405504]
[1763664123877,0.6696,2826.9,2825.8,0.405504]
[1763664123878,0.473,2826.8,2825.8,0.405504]
[1763664124080,0.1,2826.3,2825.8,0.405504]
[1763664124269,0.1,2826.2,2825.8,0.405504]
[1763664124890,0.1966,2826.9,2825.8,0.405504]
[1763664124891,0.1,2826.0,2825.8,0.405504]
[1763664125099,0.1,2826.2,2826.0,1.31249664]
[1763664125280,0.002,2826.1,2826.0,1.31249664]
[1763664125479,0.002,2826.1,2826.0,1.31649664]
[1763664126315,0.002,2826.1,2826.0,0.008]
[1763664126514,0.002,2826.1,2826.0,1.32049664]
[1763664126682,0.55730716,2828.2,2826.6,0.0011]
[1763664126683,0.473,2827.5,2826.6,0.0011]
[1763664126890,0.1,2826.8,2826.3,1.35371906]
[1763664127216,0.473,2827.8,2826.3,1.35371906]
[1763664127217,0.473,2827.8,2826.7,0.405504]
[1763664127427,0.1,2826.8,2826.4,0.405504]
[1763664127713,0.55730716,2828.2,2826.4,0.405504]
[1763664127714,0.1,2827.4,2826.7,2.2618117]
[1763664127914,0.1,2827.5,2827.2,1.31249664]
[1763664128105,0.1,2827.8,2827.3,0.0011]
[1763664128517,0.55730716,2828.2,2827.7,0.0011]
[1763664128814,0.1,2827.7,2827.2,1.31249664]
[1763664129125,0.55730716,2828.2,2827.7,0.405504]
[1763664129420,0.55730716,2828.2,2828.1,0.0011]
[1763664129604,0.55730716,2828.2,2828.1,1.31249664]
[1763664130009,0.002,2828.2,2828.1,1.31359664]
[1763664130199,0.5569285,2828.2,2828.1,1.31249664]
[1763664130394,0.5569285,2828.2,2828.1,1.31359664]
[1763664130698,0.002,2828.2,2828.1,8.91831723]
[1763664131191,0.002,2828.2,2828.1,8.91721723]
[1763664131728,0.002,2828.2,2828.1,8.91831723]
[1763664132221,0.002,2828.2,2828.1,1.31249664]
[1763664132222,0.102,2828.2,2828.1,1.31249664]
[1763664132526,0.002,2828.2,2828.1,1.31359664]
[1763664132688,0.002,2828.2,2828.1,1.31249664]
[1763664132882,0.002,2828.2,2828.1,1.31359664]
[1763664133116,1.0361,2828.2,2828.1,0.90699264]
[1763664133493,0.102,2828.2,2828.1,0.90699264]
[1763664133693,0.9361,2828.2,2827.3,0.405504]
[1763664133909,0.1,2827.9,2827.3,0.405504]
[1763664134310,0.1,2827.9,2827.2,0.405504]
[1763664134517,0.1,2827.9,2827.2,0.406604]
[1763664134823,0.1,2827.9,2827.6,1.31249664]
[1763664134991,0.002,2828.2,2827.6,1.31249664]
[1763664135192,0.002,2828.2,2827.8,0.0011]
[1763664135393,0.1801,2827.7,2827.0,7.60472059]
[1763664135597,0.1,2827.6,2826.5,7.60472059]
[1763664135993,0.1801,2827.7,2827.0,7.60472059]
[1763664136316,0.6438,2828.0,2827.1,0.90699264]
[1763664136521,0.1,2827.7,2827.6,0.90699264]
[1763664136833,0.1,2828.0,2827.7,0.405504]
[1763664137142,0.002,2828.2,2827.9,0.0011]
[1763664137290,0.4637,2829.7,2828.4,0.0011]
[1763664137498,0.4637,2829.7,2828.7,8.91831723]
[1763664138088,0.1801,2831.0,2828.8,1.31249664]
[1763664138089,0.4637,2830.1,2828.8,1.31249664]
[1763664138290,0.1801,2831.0,2828.9,0.0011]
[1763664138291,0.1,2829.9,2828.9,0.0011]
[1763664138629,0.1,2830.3,2829.9,1.31249664]
[1763664139331,0.1,2830.2,2829.9,1.31249664]
[1763664139706,0.6438,2830.6,2829.9,1.31249664]
[1763664139707,0.1,2830.0,2829.9,1.31249664]
[1763664140025,0.1,2830.0,2828.9,0.0011]
[1763664140026,0.1,2829.7,2829.5,0.405504]
[1763664140393,0.4637,2829.6,2829.5,0.405504]
[1763664140748,0.1801,2829.9,2828.9,7.60472059]
[1763664140749,0.4637,2829.8,2828.9,7.60472059]
[1763664141098,0.1,2829.2,2829.0,0.90699264]
[1763664141494,0.1,2829.8,2829.1,0.406604]
[1763664141696,0.1801,2830.6,2829.7,1.31249664]
[1763664141697,0.1,2830.1,2829.7,1.31249664]
[1763664141908,0.1,2829.9,2829.7,1.31249664]
[1763664142107,0.1,2830.3,2829.7,1.31249664]
[1763664142337,0.1801,2830.6,2830.2,1.31249664]
[1763664142646,0.1,2830.6,2830.2,1.31249664]
[1763664142860,0.002,2832.4,2830.6,1.31249664]
[1763664143011,0.002,2832.4,2831.3,1.31249664]
[1763664143520,0.002,2832.4,2831.9,1.31249664]
[1763664143521,0.102,2832.4,2831.9,1.31249664]
[1763664143845,0.002,2832.4,2832.3,8.91721723]
[1763664144045,0.002,2832.4,2832.3,1.31249664]
[1763664144046,0.102,2832.4,2832.3,1.31249664]
[1763664144459,0.1801,2833.1,2831.8,7.60472059]
[1763664144460,0.2301,2834.2,2831.8,7.60472059]
[1763664144613,0.1801,2834.9,2832.4,0.405504]
[1763664144817,0.4637,2834.1,2833.0,0.405504]
[1763664145050,0.1,2833.3,2833.0,0.405504]
[1763664145357,0.4637,2834.1,2832.4,0.90699264]
[1763664145552,0.1,2833.5,2832.9,1.31249664]
[1763664145920,0.1801,2833.5,2832.9,1.31249664]
[1763664146134,0.1,2833.2,2832.9,1.31249664]
[1763664146860,0.4637,2833.6,2832.9,1.31249664]
[1763664146861,0.1,2833.6,2832.9,1.31249664]
[1763664147553,0.1801,2833.5,2832.9,1.31249664]
[1763664147758,0.1,2833.4,2832.3,7.60472059]
[1763664147942,0.1,2832.7,2832.3,7.60472059]
[1763664148130,0.1,2832.7,2832.4,0.90699264]
[1763664148332,0.1,2832.7,2831.8,8.30399097]
[1763664148333,0.5637,2832.7,2831.8,8.30399097]
[1763664148520,0.5637,2832.7,2831.8,7.60472059]
[1763664148716,0.55403627,2832.5,2831.9,0.90699264]
[1763664148921,0.55403627,2832.5,2831.7,7.51002951]
[1763664149242,0.1801,2832.4,2831.9,0.405504]
[1763664149457,0.1,2832.2,2831.8,0.90699264]
[1763664149656,0.1,2832.1,2831.2,7.51002951]
[1763664149850,0.1,2832.1,2831.3,0.90699264]
[1763664150161,0.1,2832.1,2831.2,8.22753771]
[1763664150347,0.1,2832.1,2830.1,0.122]
[1763664150348,0.473,2832.0,2830.1,0.122]
[1763664150527,0.473,2832.0,2831.0,1.31249664]
[1763664150723,0.473,2832.0,2831.0,0.90699264]
[1763664150951,0.473,2832.0,2830.9,7.51002951]
[1763664151562,0.1,2831.1,2830.4,7.51002951]
[1763664151962,0.1,2831.1,2830.5,0.90699264]
[1763664152477,0.473,2831.0,2829.9,7.51002951]
[1763664152761,0.6556,2831.0,2829.9,7.51002951]
[1763664153067,0.6556,2831.0,2830.0,0.90699264]
[1763664153372,0.473,2830.9,2830.0,0.90699264]
[1763664153666,0.473,2830.9,2829.9,7.51002951]
[1763664153884,0.473,2830.9,2829.4,8.20275157]
[1763664153885,0.1,2829.9,2829.4,8.20275157]
[1763664154164,0.1,2829.8,2829.4,7.51002951]
[1763664154378,0.1,2829.8,2829.6,0.405504]
[1763664154589,0.1,2829.8,2829.5,0.90699264]
[1763664154764,0.1,2829.8,2829.6,0.405504]
[1763664155136,0.1,2830.1,2829.5,0.90699264]
[1763664155568,0.1,2830.1,2829.6,0.405504]
[1763664155732,0.1,2830.1,2829.5,0.405504]
[1763664155936,0.1,2829.8,2829.5,0.405504]
[1763664156186,0.473,2830.9,2829.5,1.31249664]
[1763664156388,0.1,2830.4,2830.0,1.31249664]
[1763664157472,0.1826,2831.0,2830.0,1.31249664]
[1763664157781,0.1,2830.9,2830.6,1.31249664]
[1763664157980,0.1826,2830.9,2830.6,1.31249664]
[1763664158149,0.1,2830.7,2830.6,1.31249664]
[1763664158687,0.1,2830.6,2830.2,0.405504]
[1763664159247,0.1826,2830.9,2830.2,0.405504]
[1763664159447,0.1,2830.6,2830.2,0.405504]
[1763664160179,0.1826,2830.9,2830.2,0.405504]
[1763664160355,0.1,2830.4,2830.2,0.405504]
[1763664160749,0.1,2830.5,2830.2,0.405504]
[1763664160949,0.1,2830.4,2830.2,0.405504]
[1763664161148,0.1,2830.1,2830.0,0.001]
[1763664161670,0.5539,2830.1,2830.0,0.001]
[1763664161857,0.4539,2830.1,2829.7,0.001]
[1763664162056,0.4539,2830.1,2829.4,0.001]
[1763664162057,0.1802,2829.8,2829.4,0.001]
[1763664162257,0.1,2829.5,2829.4,0.001]
[1763664162774,0.5539,2829.5,2829.4,0.001]
[1763664165200,0.5539,2829.5,2827.8,0.94821506]
[1763664165351,0.4539,2829.5,2827.6,7.51002951]
[1763664165556,0.1,2828.1,2827.6,8.22795594]
[1763664165755,0.1,2828.1,2827.7,0.405504]
[1763664166185,0.1,2828.1,2827.6,7.51002951]
[1763664166579,0.1,2827.9,2827.7,0.405504]
[1763664166894,0.1,2827.8,2827.6,7.51002951]
[1763664167189,0.1,2827.8,2827.7,0.90699264]
[1763664167487,0.1,2827.8,2827.0,0.94821506]
[1763664167488,0.1,2827.8,2827.1,7.51002951]
[1763664167795,0.1,2827.7,2827.1,7.51002951]
[1763664167998,0.4539,2828.0,2826.6,7.51002951]
[1763664168162,0.1,2827.3,2826.6,7.51002951]
[1763664168360,0.4539,2828.0,2826.7,0.90699264]
[1763664168361,0.1,2827.0,2826.7,0.90699264]
[1763664168688,0.1,2827.0,2826.7,1.61863635]
[1763664168888,0.1,2827.0,2826.8,0.405504]
[1763664169095,0.1,2827.0,2826.3,0.001]
[1763664169281,0.4539,2827.5,2826.6,7.51002951]
[1763664169596,0.55511977,2826.9,2826.8,0.405504]
[1763664169784,0.1,2826.8,2826.7,0.90699264]
[1763664170173,0.1,2826.8,2826.6,7.51002951]
[1763664170372,0.55512335,2826.9,2826.6,8.20305936]
[1763664170698,0.1,2827.6,2826.8,0.405504]
[1763664170864,0.4539,2828.0,2826.8,0.405504]
[1763664170865,0.1,2827.5,2826.8,0.405504]
[1763664171396,0.1,2827.7,2827.2,1.31249664]
[1763664171601,0.1,2827.8,2827.2,1.31249664]
[1763664171801,0.1,2827.8,2827.2,0.90699264]
[1763664172094,0.1,2827.7,2827.3,0.405504]
[1763664173400,0.1,2827.4,2826.6,0.69302985]
[1763664173620,1.00893088,2827.7,2826.7,0.405504]
[1763664173898,0.1,2827.4,2826.6,0.405504]
[1763664174109,0.1,2827.1,2826.6,1.31249664]
[1763664174470,0.5539,2827.1,2826.5,7.51002951]
[1763664174801,0.55503088,2827.7,2826.6,1.31249664]
[1763664174802,0.1,2827.2,2826.6,1.31249664]
[1763664174970,0.55503088,2827.7,2827.1,1.31249664]
[1763664175165,0.1,2827.4,2827.1,1.31249664]
[1763664175774,0.1,2827.7,2827.1,1.31249664]
[1763664176161,0.4539,2828.0,2827.1,1.31249664]
[1763664176162,0.1,2827.5,2827.1,1.31249664]
[1763664177502,0.4539,2828.0,2827.3,0.405504]
[1763664177700,0.1,2827.9,2827.6,1.31249664]
[1763664178075,0.4539,2828.3,2827.6,1.31249664]
[1763664178296,0.1,2827.7,2827.6,1.31249664]
[1763664179165,0.1,2827.9,2827.6,1.31249664]
[1763664179366,0.1,2827.7,2827.6,1.31249664]
[1763664179567,0.1,2827.9,2827.6,1.31249664]
[1763664180506,0.1,2827.6,2827.1,1.31249664]
[1763664180801,0.1,2827.3,2827.0,0.001]
[1763664181305,0.1,2827.1,2827.0,0.001]
[1763664181468,0.4539,2828.2,2827.1,0.90699264]
[1763664181663,0.1,2827.5,2827.2,0.405504]
[1763664181863,0.1,2827.3,2827.2,0.405504]
[1763664182090,0.1,2827.3,2827.1,0.90699264]
[1763664182420,0.1,2827.2,2827.1,0.90699264]
[1763664182696,0.1,2827.2,2827.0,6.21989054]
[1763664182697,0.1,2827.1,2827.0,0.001]
[1763664183099,0.1,2827.1,2826.8,0.001]
[1763664183100,0.5539,2827.1,2826.8,0.001]
[1763664183316,0.2802,2826.9,2826.8,0.001]
[1763664183689,0.7341,2826.9,2826.8,0.001]
[1763664184298,0.2802,2826.9,2826.8,0.001]
[1763664184499,0.1,2826.9,2826.8,0.001]
[1763664184722,0.5539,2826.9,2826.8,0.001]
[1763664186623,0.1,2826.9,2826.8,0.001]
[1763664187332,0.5539,2826.9,2826.8,0.001]
[1763664189018,1.021,2826.9,2826.8,0.001]
[1763664189236,1.021,2826.9,2825.4,0.94821506]
[1763664189237,30.0,2826.8,2825.4,0.94821506]
[1763664189393,0.1,2825.1,2825.0,0.94821506]
[1763664189706,0.1,2824.6,2824.5,0.001]
[1763664190306,0.586,2824.6,2824.5,0.001]
[1763664190617,0.1,2824.6,2824.5,0.001]
[1763664193020,0.1901,2825.8,2824.5,0.001]
[1763664193021,0.1,2824.8,2824.6,1.31249664]
[1763664193331,0.486,2825.5,2824.6,1.31249664]
[1763664193630,0.1,2824.7,2824.6,1.31249664]
[1763664193926,0.1,2824.6,2824.5,0.001]
[1763664195315,0.1,2824.7,2824.5,0.001]
[1763664195514,0.1,2824.9,2824.5,0.001]
[1763664195718,0.1,2824.7,2824.5,0.001]
[1763664195929,1.04157145,2825.3,2824.6,1.31249664]
[1763664195930,0.55557145,2825.3,2824.6,1.31249664]
[1763664196129,0.55557145,2825.3,2824.7,0.405504]
[1763664196314,0.1,2825.0,2824.7,0.405504]
[1763664197104,0.1,2825.3,2824.7,0.405504]
[1763664197410,0.1,2825.0,2824.7,0.405504]
[1763664198650,0.486,2825.3,2824.7,0.405504]
[1763664198859,0.1,2824.9,2824.8,1.31249664]
[1763664199022,0.486,2825.7,2824.9,1.31249664]
[1763664199023,0.1,2825.2,2824.9,1.31249664]
[1763664199351,0.1901,2825.8,2824.9,1.31249664]
[1763664199508,0.1901,2826.8,2825.8,1.31249664]
[1763664199713,0.1901,2826.8,2826.5,7.13128119]
[1763664199940,0.1,2826.7,2826.6,1.31249664]
[1763664200124,0.488,2827.0,2826.6,1.31249664]
[1763664200125,0.002,2827.0,2826.6,1.31249664]
[1763664200323,0.002,2827.0,2826.9,0.405504]
[1763664200538,0.102,2827.0,2826.9,1.31249664]
[1763664200850,0.102,2827.0,2826.9,0.405504]
[1763664201961,0.1,2826.5,2826.4,0.405504]
[1763664202675,0.5551815,2826.2,2825.7,6.21938368]
[1763664203177,0.5551815,2826.2,2825.3,0.90699264]
[1763664203178,0.1,2825.4,2825.3,0.90699264]
[1763664203381,0.486,2826.1,2825.3,0.405504]
[1763664203382,0.1,2825.7,2825.3,0.405504]
[1763664203580,0.1,2825.7,2825.3,1.31249664]
[1763664203741,0.1901,2825.9,2825.3,0.90699264]
[1763664203942,0.1,2825.6,2825.3,0.90699264]
[1763664204152,0.486,2825.8,2825.2,6.21938368]
[1763664204363,0.1,2825.3,2825.2,7.12637632]
[1763664204556,0.1,2825.3,2825.2,6.62488768]
[1763664204946,0.1,2825.6,2825.3,1.31249664]
[1763664206395,0.1,2825.6,2824.8,0.94821506]
[1763664206554,0.1,2825.6,2825.3,0.90699264]
[1763664206755,0.1,2825.6,2825.4,0.405504]
[1763664207494,0.1901,2825.9,2825.4,0.405504]
[1763664207794,0.1,2825.7,2825.4,0.405504]
[1763664208092,0.1,2825.5,2825.4,0.405504]
[1763664209000,0.486,2826.7,2825.4,0.543004]
[1763664209162,0.1,2826.4,2825.9,1.31249664]
[1763664209666,0.486,2826.7,2825.9,1.31249664]
[1763664210007,0.1,2826.1,2825.9,1.31249664]
[1763664210300,0.1,2826.0,2825.9,1.31249664]
[1763664210672,0.1,2826.3,2825.9,1.31249664]
[1763664210897,0.1,2826.2,2825.9,1.31249664]
[1763664211995,0.1,2826.2,2825.9,0.90699264]
[1763664211996,0.1,2826.0,2825.9,0.90699264]
[1763664212198,0.1,2825.5,2825.4,1.8552077]
[1763664212494,0.1901,2826.9,2825.4,1.8552077]
[1763664212495,0.1,2825.8,2825.4,1.85692381]
[1763664212791,0.4683,2826.3,2825.5,0.405504]
[1763664212993,0.1,2825.6,2825.5,0.405504]
[1763664213435,0.1,2825.5,2825.4,0.90699264]
[1763664213772,0.1,2825.4,2825.3,6.21938368]
[1763664213969,0.1,2825.4,2825.3,6.62488768]
[1763664214174,0.1,2825.6,2825.5,0.405504]
[1763664217401,0.5683,2825.6,2825.5,0.405504]
[1763664218424,0.4683,2825.6,2825.4,0.001]
[1763664218622,0.1977,2825.9,2825.4,0.001]
[1763664218834,0.1977,2825.9,2824.8,6.22038368]
[1763664218835,0.5942,2825.5,2824.8,0.95093117]
[1763664219031,0.1,2824.9,2824.8,0.001]
[1763664219306,0.1,2825.2,2824.8,0.001]
[1763664219527,0.55547985,2824.9,2824.8,0.001]
[1763664219718,0.1,2824.9,2824.8,0.001]
[1763664220138,0.6554773,2824.9,2824.8,0.001]
[1763664220842,0.1,2825.4,2824.9,0.405504]
[1763664221013,0.4725,2825.8,2825.2,0.405504]
[1763664221014,0.1,2825.3,2825.2,0.405504]
[1763664221215,0.1,2825.1,2825.0,0.405504]
[1763664222912,0.1,2824.9,2824.8,7.53388079]
[1763664223110,0.1,2824.9,2824.8,8.44087343]
[1763664224317,0.2994,2824.9,2824.8,1.31349664]
[1763664225653,0.1,2824.9,2824.8,1.31349664]
[1763664225804,0.1,2825.1,2824.9,0.405504]
[1763664226003,0.1,2825.1,2824.8,0.001]
[1763664226004,0.1994,2825.2,2824.8,0.406504]
[1763664226244,0.1,2824.9,2824.8,0.406504]
[1763664227328,0.1,2825.0,2824.8,1.35850942]
[1763664227527,0.1,2825.0,2824.9,8.43987343]
[1763664228129,0.1,2825.0,2824.9,1.31249664]
[1763664228304,0.4725,2825.2,2825.0,0.405504]
[1763664228305,0.1,2825.1,2825.0,0.405504]
[1763664228812,0.1,2825.1,2825.0,0.35553766]
[1763664230147,0.1977,2825.9,2825.0,0.49303766]
[1763664230303,0.1,2825.6,2825.5,0.90699264]
[1763664230842,1.0667,2825.6,2825.5,1.31249664]
[1763664231022,1.0667,2825.6,2825.1,0.90699264]
[1763664231222,0.1,2825.3,2825.2,0.405504]
[1763664231846,0.1,2825.5,2825.2,0.405504]
[1763664232006,0.1,2825.3,2825.2,0.405504]
[1763664233839,1.0667,2825.3,2825.2,0.405504]
[1763664234862,0.9667,2825.3,2825.1,0.405504]
[1763664235163,0.1,2825.1,2825.0,0.001]
[1763664235372,0.1,2825.1,2825.0,8.44087343]
[1763664235555,0.1,2825.3,2825.1,1.31249664]
[1763664235738,0.1,2825.3,2825.1,2.26634943]
[1763664235941,0.1,2825.3,2825.1,1.31249664]
[1763664236141,0.5942,2825.2,2825.0,0.001]
[1763664236345,0.5942,2825.1,2825.0,0.001]
[1763664236865,1.0667,2825.1,2825.0,0.001]
[1763664238971,1.0667,2825.1,2824.7,1.27052694]
[1763664238972,0.1,2824.8,2824.7,1.27052694]
[1763664239752,1.0667,2824.8,2824.7,1.27052694]
[1763664240360,0.1,2824.6,2824.5,0.95485279]
[1763664240645,0.5942,2824.6,2824.5,0.001]
[1763664241087,0.1,2824.6,2824.5,0.95485279]
[1763664241255,0.65559222,2824.6,2824.5,1.36035679]
[1763664241753,0.1,2824.7,2824.6,0.405504]